[Event "6th Porticcio Open 2019"]
[Site "Porticcio"]
[Date "2019.07.01"]
[Round "4.7"]
[White "Zhigalko, Sergei"]
[Black "Rakotomaharo, Fy Antenaina"]
[Result "1-0"]
[ECO "C92"]
[WhiteElo "2594"]
[BlackElo "2419"]
[Annotator "ChessBase"]
[PlyCount "111"]
[EventDate "2019.06.23"]
[EventType "swiss"]
[EventCountry "FRA"]
[SourceTitle "playchess.com"]
[Source "ChessBase"]
[SourceQuality "1"]
[TimeControl "5400+30"]

1. e4 {[%emt 0:00:00]} e5 {[%emt 0:01:10]} 2. Nf3 {[%emt 0:00:00]} Nc6 {[%emt 0:00:05]} 3. Bb5 {[%emt 0:00:00]} a6 {[%emt 0:00:05]} 4. Ba4 {[%emt 0:00:00]} Nf6 {[%emt 0:00:07]} 5. O-O {[%emt 0:00:00]} Be7 {[%emt 0:00:05]} 6. Re1 {[%emt 0:00:00]} b5 {[%emt 0:00:06]} 7. Bb3 {[%emt 0:00:00]} d6 {[%emt 0:00:07]} 8. c3 {[%emt 0:00:00]} O-O {[%emt 0:00:07]} 9. h3 {[%emt 0:00:00]} Bb7 {[%emt 0:00:19]} 10. d4 {[%emt 0:00:40]} Re8 {[%emt 0:00:07]} 11. Nbd2 {[%emt 0:01:49]} Bf8 {[%emt 0:00:46]} 12. a3 {[%emt 0:01:07]} h6 {[%emt 0:00:07]} 13. Bc2 {[%emt 0:01:01]} d5 {[%emt 0:00:28]} 14. dxe5 {[%emt 0:05:20]} Nxe5 {[%emt 0:00:07]} 15. Nxe5 {[%emt 0:02:28]} Rxe5 {[%emt 0:00:06]} 16. Nf3 {[%emt 0:01:14]} Re8 {[%emt 0:11:38]} 17. e5 {[%emt 0:03:12]} Ne4 {[%emt 0:00:08]} 18. Bf4 {[%emt 0:19:21]} g6 {[%emt 0:09:35]} 19. Bxe4 {[%emt 0:25:55]} dxe4 {[%emt 0:00:07]} 20. Nd2 {[%emt 0:00:05]} f5 {[%emt 0:02:42]} 21. exf6 {[%emt 0:00:55]} Qxf6 {[%emt 0:00:07]} 22. Qg4 {[%emt 0:01:06]} Rad8 {[%emt 0:28:49]} 23. Nf1 {[%emt 0:03:53]} Bc8 {[%emt 0:06:15]} 24. Qg3 {[%emt 0:00:13]} c5 {[%emt 0:00:43]} 25. Rad1 {[%emt 0:00:48]} Bf5 {[%emt 0:04:39]} 26. Bc7 {[%emt 0:00:54]} Rxd1 {[%emt 0:03:28]} 27. Rxd1 {[%emt 0:00:03]} b4 {[%emt 0:00:10]} 28. Ne3 {[%emt 0:05:50]} bxa3 {[%emt 0:00:57]} 29. bxa3 {[%emt 0:00:59]} Bg7 {[%emt 0:02:05]} 30. Rd5 {[%emt 0:06:17]} Qxc3 {[%emt 0:05:31]} 31. Nxf5 {[%emt 0:01:55]} gxf5 {[%emt 0:01:08]} 32. Qg6 {[%emt 0:07:57]} Rf8 {[%emt 0:00:12]} 33. Be5 {[%emt 0:00:40]} Qc1+ {[%emt 0:00:06]} 34. Kh2 {[%emt 0:00:05]} Qg5 {[%emt 0:00:04]} 35. Qe6+ {[%emt 0:01:06]} Kh8 {[%emt 0:00:44]} 36. Rxc5 {[%emt 0:02:21]} Bxe5+ {[%emt 0:06:37]} 37. Qxe5+ {[%emt 0:00:01]} Qf6 {[%emt 0:00:07]} 38. Qf4 {[%emt 0:00:24]} Qg5 {[%emt 0:02:28]} 39. Qd6 {[%emt 0:00:49]} Qf6 {[%emt 0:00:06]} 40. Qd5 {[%emt 0:04:08]} Qf7 {[%emt 0:04:54]} 41. Qd4+ {[%emt 0:00:18]} Qf6 {[%emt 0:00:36]} 42. Re5 {[%emt 0:00:30]} Rf7 {[%emt 0:01:35]} 43. Qd5 {[%emt 0:00:29]} Kg7 {[%emt 0:02:29]} 44. Re6 {[%emt 0:01:53]} Qb2 {[%emt 0:01:09]} 45. Rxa6 {[%emt 0:04:26]} Qb8+ {[%emt 0:05:47]} 46. g3 {[%emt 0:00:01]} Qb2 {[%emt 0:00:05]} 47. Qc5 {[%emt 0:00:54]} f4 {[%emt 0:01:58]} 48. gxf4 {[%emt 0:00:08]} Rxf4 {[%emt 0:00:12]} 49. Qc7+ {[%emt 0:00:40]} Rf7 {[%emt 0:00:34]} 50. Qg3+ {[%emt 0:00:04]} Kf8 {[%emt 0:00:20]} 51. Qd6+ {[%emt 0:01:40]} Re7 {[%emt 0:01:15]} 52. Qxh6+ {[%emt 0:00:23]} Ke8 {[%emt 0:00:49]} 53. Qc6+ {[%emt 0:00:11]} Kf8 {[%emt 0:00:46]} 54. Qc8+ {[%emt 0:00:41]} Kg7 {[%emt 0:01:24]} 55. Qg4+ {[%emt 0:00:07]} Kh8 {[%emt 0:00:10]} 56. Ra8+ {[%emt 0:00:19]} 1-0

[Event "6th Porticcio Open 2019"]
[Site "Porticcio"]
[Date "2019.07.01"]
[Round "4.8"]
[White "Kirk, Ezra"]
[Black "Kovchan, Alexander"]
[Result "1/2-1/2"]
[ECO "B52"]
[WhiteElo "2428"]
[BlackElo "2566"]
[Annotator "ChessBase"]
[PlyCount "156"]
[EventDate "2019.06.23"]
[EventType "swiss"]
[EventCountry "FRA"]
[SourceTitle "playchess.com"]
[Source "ChessBase"]
[SourceQuality "1"]
[TimeControl "5400+30"]

1. e4 {[%emt 0:00:14]} c5 {[%emt 0:00:00]} 2. Nf3 {[%emt 0:00:05]} d6 {[%emt 0:00:00]} 3. Bb5+ {[%emt 0:00:16]} Bd7 {[%emt 0:00:00]} 4. c4 {[%emt 0:00:08]} g6 {[%emt 0:00:56]} 5. Nc3 {[%emt 0:02:04]} Bg7 {[%emt 0:00:10]} 6. d4 {[%emt 0:00:07]} cxd4 {[%emt 0:00:18]} 7. Nxd4 {[%emt 0:00:06]} Nf6 {[%emt 0:00:08]} 8. Be3 {[%emt 0:00:24]} O-O {[%emt 0:00:25]} 9. Bxd7 {[%emt 0:01:11]} Nbxd7 {[%emt 0:00:10]} 10. O-O {[%emt 0:01:19]} a6 {[%emt 0:05:05]} 11. Rc1 {[%emt 0:02:28]} Rc8 {[%emt 0:09:20]} 12. b3 {[%emt 0:00:09]} e6 {[%emt 0:01:02]} 13. Nde2 {[%emt 0:18:00]} Nc5 {[%emt 0:06:13]} 14. f3 {[%emt 0:00:34]} Qa5 {[%emt 0:09:21]} 15. Rb1 {[%emt 0:09:57]} Qc7 {[%emt 0:01:21]} 16. Qd2 {[%emt 0:00:53]} Rfd8 {[%emt 0:01:27]} 17. Rfd1 {[%emt 0:01:11]} Qe7 {[%emt 0:11:01]} 18. Kh1 {[%emt 0:17:43]} Qe8 {[%emt 0:04:55]} 19. a4 {[%emt 0:02:41]} b6 {[%emt 0:02:13]} 20. Bg5 {[%emt 0:03:42]} Nb7 {[%emt 0:08:43]} 21. Qf4 {[%emt 0:02:35]} Qe7 {[%emt 0:00:45]} 22. Qh4 {[%emt 0:02:27]} Nc5 {[%emt 0:12:48]} 23. Ng3 {[%emt 0:03:42]} Ncd7 {[%emt 0:03:44]} 24. e5 {[%emt 0:03:17]} Nxe5 {[%emt 0:01:28]} 25. Nce4 {[%emt 0:07:06]} Ned7 {[%emt 0:00:12]} 26. Rxd6 {[%emt 0:06:42]} h6 {[%emt 0:01:50]} 27. Bxh6 {[%emt 0:00:36]} Bxh6 {[%emt 0:00:28]} 28. Qxh6 {[%emt 0:00:48]} Ne8 {[%emt 0:04:22]} 29. Rd2 Nf8 {[%emt 0:02:37]} 30. Rbd1 {[%emt 0:03:58]} f5 {[%emt 0:01:04]} 31. Nf2 {[%emt 0:02:51]} Rxd2 {[%emt 0:00:38]} 32. Qxd2 {[%emt 0:00:05]} a5 {[%emt 0:00:27]} 33. Ne2 {[%emt 0:00:48]} Rc7 {[%emt 0:01:42]} 34. Qe3 {[%emt 0:00:52]} Qc5 {[%emt 0:00:57]} 35. Qxc5 {[%emt 0:00:17]} bxc5 {[%emt 0:01:30]} 36. Nd3 {[%emt 0:00:14]} Nd7 {[%emt 0:01:11]} 37. Nc3 {[%emt 0:00:14]} g5 {[%emt 0:02:41]} 38. Re1 {[%emt 0:02:30]} Kf7 {[%emt 0:00:24]} 39. f4 {[%emt 0:00:37]} gxf4 {[%emt 0:00:25]} 40. Nxf4 {[%emt 0:00:11]} e5 {[%emt 0:00:46]} 41. Nfd5 {[%emt 0:00:23]} Rc8 {[%emt 0:00:52]} 42. Ne3 {[%emt 0:01:14]} Ke6 {[%emt 0:00:30]} 43. Rd1 {[%emt 0:01:29]} Nef6 {[%emt 0:00:47]} 44. Nb5 {[%emt 0:00:23]} Ne4 {[%emt 0:00:50]} 45. Kg1 {[%emt 0:00:18]} Ndf6 {[%emt 0:00:25]} 46. Nd5 {[%emt 0:00:40]} Ne8 {[%emt 0:04:05]} 47. Nbc3 {[%emt 0:01:27]} Nxc3 {[%emt 0:00:43]} 48. Nxc3 {[%emt 0:00:04]} Nf6 {[%emt 0:00:40]} 49. h3 {[%emt 0:01:33]} f4 {[%emt 0:01:12]} 50. Re1 {[%emt 0:02:06]} Rg8 {[%emt 0:01:01]} 51. Kf2 {[%emt 0:01:00]} Rg3 {[%emt 0:00:28]} 52. Ne2 {[%emt 0:00:53]} Ne4+ {[%emt 0:00:11]} 53. Kf1 {[%emt 0:00:23]} Nd2+ {[%emt 0:00:02]} 54. Kf2 {[%emt 0:00:08]} Ne4+ {[%emt 0:00:12]} 55. Kf1 {[%emt 0:00:03]} Re3 {[%emt 0:00:31]} 56. Nxf4+ {[%emt 0:00:38]} exf4 {[%emt 0:00:05]} 57. Rxe3 {[%emt 0:00:03]} fxe3 {[%emt 0:00:08]} 58. Ke2 {[%emt 0:00:03]} Nd2 {[%emt 0:01:12]} 59. Kxe3 {[%emt 0:00:05]} Nxb3 {[%emt 0:00:32]} 60. g4 {[%emt 0:00:19]} Nd4 {[%emt 0:00:23]} 61. h4 {[%emt 0:00:20]} Nc6 {[%emt 0:01:23]} 62. h5 {[%emt 0:01:24]} Ne5 {[%emt 0:00:05]} 63. g5 {[%emt 0:00:55]} Nxc4+ {[%emt 0:00:30]} 64. Kf4 {[%emt 0:00:31]} Ne5 {[%emt 0:01:13]} 65. Ke4 {[%emt 0:01:20]} Nd7 {[%emt 0:00:26]} 66. Kf4 {[%emt 0:00:53]} Ne5 {[%emt 0:01:14]} 67. Ke4 Nd7 {[%emt 0:00:02]} 68. Kf4 {[%emt 0:00:12]} Nb6 {[%emt 0:00:20]} 69. Ke4 {[%emt 0:00:45]} Nxa4 {[%emt 0:00:11]} 70. h6 {[%emt 0:00:11]} Nc3+ {[%emt 0:00:20]} 71. Kd3 {[%emt 0:00:16]} Nd5 {[%emt 0:00:24]} 72. h7 {[%emt 0:00:06]} Nf4+ {[%emt 0:00:14]} 73. Kc4 {[%emt 0:00:05]} Ng6 {[%emt 0:00:08]} 74. Kxc5 {[%emt 0:00:04]} Kf7 {[%emt 0:00:17]} 75. Kb5 {[%emt 0:00:05]} Kg7 {[%emt 0:00:03]} 76. Kxa5 {[%emt 0:00:05]} Kxh7 {[%emt 0:00:02]} 77. Ka4 {[%emt 0:00:04]} Ne5 {[%emt 0:00:04]} 78. g6+ {[%emt 0:00:04]} Kxg6 {[%emt 0:00:03]} 1/2-1/2

[Event "6th Porticcio Open 2019"]
[Site "Porticcio"]
[Date "2019.07.02"]
[Round "5.2"]
[White "Lagarde, Maxime"]
[Black "Libiszewski, Fabien"]
[Result "1-0"]
[ECO "C11"]
[WhiteElo "2599"]
[BlackElo "2518"]
[Annotator "ChessBase"]
[PlyCount "91"]
[EventDate "2019.06.23"]
[EventType "swiss"]
[EventCountry "FRA"]
[SourceTitle "playchess.com"]
[Source "ChessBase"]
[SourceQuality "1"]
[TimeControl "5400+30"]

1. e4 {[%emt 0:02:12]} e6 {[%emt 0:00:00]} 2. d4 {[%emt 0:00:51]} d5 {[%emt 0:00:00]} 3. Nc3 {[%emt 0:00:08]} Nf6 {[%emt 0:00:20]} 4. e5 {[%emt 0:00:05]} Nfd7 {[%emt 0:00:11]} 5. Nce2 {[%emt 0:00:03]} c5 {[%emt 0:01:16]} 6. c3 {[%emt 0:00:08]} Nc6 {[%emt 0:00:49]} 7. f4 {[%emt 0:00:07]} cxd4 {[%emt 0:07:47]} 8. cxd4 {[%emt 0:03:42]} f5 {[%emt 0:00:35]} 9. Nf3 {[%emt 0:01:39]} Be7 {[%emt 0:00:38]} 10. Nc3 {[%emt 0:03:11]} Nb6 {[%emt 0:02:14]} 11. Bd3 {[%emt 0:00:56]} Bd7 {[%emt 0:02:28]} 12. h3 {[%emt 0:05:02]} O-O {[%emt 0:09:39]} 13. g4 {[%emt 0:00:53]} Be8 {[%emt 0:00:38]} 14. a3 {[%emt 0:09:19]} a5 {[%emt 0:10:54]} 15. Ne2 {[%emt 0:01:52]} a4 {[%emt 0:04:47]} 16. gxf5 {[%emt 0:15:52]} Bh4+ {[%emt 0:10:49]} 17. Kf1 {[%emt 0:02:59]} exf5 {[%emt 0:04:25]} 18. Be3 {[%emt 0:04:21]} Na5 {[%emt 0:03:33]} 19. Bf2 {[%emt 0:10:24]} Bxf2 {[%emt 0:06:06]} 20. Kxf2 {[%emt 0:00:04]} Nb3 {[%emt 0:03:14]} 21. Ng3 {[%emt 0:00:20]} Nxa1 {[%emt 0:01:35]} 22. Qxa1 {[%emt 0:00:05]} Nc4 {[%emt 0:05:46]} 23. Re1 {[%emt 0:04:14]} g6 {[%emt 0:07:48]} 24. h4 {[%emt 0:04:08]} Rc8 {[%emt 0:01:26]} 25. Re2 {[%emt 0:10:41]} Qb6 {[%emt 0:02:26]} 26. h5 {[%emt 0:01:54]} Rc7 {[%emt 0:02:02]} 27. hxg6 {[%emt 0:05:24]} hxg6 {[%emt 0:00:38]} 28. Kg2 {[%emt 0:00:16]} Na5 {[%emt 0:01:50]} 29. Qg1 {[%emt 0:07:56]} Nb3 {[%emt 0:02:30]} 30. Re1 {[%emt 0:00:15]} Bb5 {[%emt 0:02:40]} 31. Bb1 {[%emt 0:00:03]} Rfc8 {[%emt 0:00:35]} 32. e6 {[%emt 0:00:55]} Be8 {[%emt 0:01:40]} 33. e7 {[%emt 0:03:16]} Rc1 {[%emt 0:01:47]} 34. Nxf5 {[%emt 0:01:39]} gxf5 {[%emt 0:01:14]} 35. Bxf5 {[%emt 0:00:04]} Rxe1 {[%emt 0:01:22]} 36. Qxe1 {[%emt 0:00:06]} Rc6 {[%emt 0:00:26]} 37. Qe5 {[%emt 0:02:28]} Rd6 {[%emt 0:01:21]} 38. Ng5 {[%emt 0:00:18]} Rh6 {[%emt 0:00:58]} 39. Ne6 {[%emt 0:00:48]} Rxe6 {[%emt 0:00:31]} 40. Bxe6+ {[%emt 0:00:04]} Kh7 {[%emt 0:00:04]} 41. Qf5+ {[%emt 0:00:13]} Bg6 {[%emt 0:00:46]} 42. Qxg6+ {[%emt 0:00:09]} Kxg6 {[%emt 0:00:04]} 43. e8=Q+ {[%emt 0:00:05]} Kh6 {[%emt 0:00:42]} 44. Qf8+ {[%emt 0:00:17]} Kh5 {[%emt 0:00:18]} 45. Qf5+ {[%emt 0:00:06]} Kh6 {[%emt 0:00:04]} 46. Qf6+ {[%emt 0:00:02]} 1-0

[Event "6th Porticcio Open 2019"]
[Site "Porticcio"]
[Date "2019.07.02"]
[Round "5.3"]
[White "Yankelevich, Lev"]
[Black "Zhigalko, Sergei"]
[Result "1/2-1/2"]
[ECO "B33"]
[WhiteElo "2484"]
[BlackElo "2594"]
[Annotator "ChessBase"]
[PlyCount "58"]
[EventDate "2019.06.23"]
[EventType "swiss"]
[EventCountry "FRA"]
[SourceTitle "playchess.com"]
[Source "ChessBase"]
[SourceQuality "1"]
[TimeControl "5400+30"]

1. e4 {[%emt 0:00:00]} c5 {[%emt 0:00:00]} 2. Nf3 {[%emt 0:00:00]} Nc6 {[%emt 0:00:00]} 3. d4 {[%emt 0:00:00]} cxd4 {[%emt 0:00:02]} 4. Nxd4 {[%emt 0:00:00]} Nf6 {[%emt 0:00:06]} 5. Nc3 {[%emt 0:00:00]} e5 {[%emt 0:00:05]} 6. Ndb5 {[%emt 0:00:00]} d6 {[%emt 0:00:06]} 7. Bg5 {[%emt 0:00:00]} a6 {[%emt 0:00:04]} 8. Na3 {[%emt 0:00:00]} b5 {[%emt 0:00:08]} 9. Nd5 {[%emt 0:00:01]} Be7 {[%emt 0:00:21]} 10. Bxf6 {[%emt 0:00:05]} Bxf6 {[%emt 0:00:08]} 11. c3 {[%emt 0:00:04]} Bg5 {[%emt 0:00:58]} 12. Nc2 {[%emt 0:00:05]} Ne7 {[%emt 0:01:15]} 13. h4 {[%emt 0:00:06]} Bh6 {[%emt 0:00:10]} 14. a4 {[%emt 0:00:04]} bxa4 {[%emt 0:00:44]} 15. Ncb4 {[%emt 0:00:03]} O-O {[%emt 0:00:57]} 16. Qxa4 {[%emt 0:00:22]} a5 {[%emt 0:00:55]} 17. Bb5 {[%emt 0:00:15]} Nxd5 {[%emt 0:01:13]} 18. Nxd5 {[%emt 0:00:08]} Be6 {[%emt 0:00:45]} 19. Bc6 {[%emt 0:00:04]} Rb8 {[%emt 0:00:17]} 20. b4 {[%emt 0:00:02]} axb4 {[%emt 0:00:22]} 21. cxb4 {[%emt 0:00:04]} Kh8 {[%emt 0:00:44]} 22. b5 {[%emt 0:00:03]} Bxd5 {[%emt 0:00:42]} 23. Bxd5 {[%emt 0:00:04]} Qb6 {[%emt 0:00:06]} 24. Bc6 {[%emt 0:00:04]} Be3 {[%emt 0:02:20]} 25. fxe3 {[%emt 0:00:03]} Qxe3+ {[%emt 0:00:06]} 26. Kd1 {[%emt 0:00:01]} Qd3+ {[%emt 0:00:11]} 27. Ke1 {[%emt 0:00:02]} Qe3+ {[%emt 0:00:51]} 28. Kd1 {[%emt 0:00:03]} Qd3+ {[%emt 0:00:09]} 29. Ke1 {[%emt 0:00:03]} Qe3+ {[%emt 0:00:15]} 1/2-1/2

[Event "6th Porticcio Open 2019"]
[Site "Porticcio"]
[Date "2019.07.02"]
[Round "5.4"]
[White "Prithu Gupta"]
[Black "Sengupta, Deep"]
[Result "1-0"]
[ECO "A14"]
[WhiteElo "2470"]
[BlackElo "2559"]
[Annotator "ChessBase"]
[PlyCount "107"]
[EventDate "2019.06.23"]
[EventType "swiss"]
[EventCountry "FRA"]
[SourceTitle "playchess.com"]
[Source "ChessBase"]
[SourceQuality "1"]
[TimeControl "5400+30"]

1. c4 {[%emt 0:00:00]} e6 {[%emt 0:00:00]} 2. g3 {[%emt 0:00:00]} d5 {[%emt 0:00:00]} 3. Bg2 {[%emt 0:00:00]} Nf6 {[%emt 0:00:00]} 4. Nf3 {[%emt 0:00:00]} Be7 {[%emt 0:00:00]} 5. O-O {[%emt 0:00:02]} O-O {[%emt 0:00:02]} 6. b3 {[%emt 0:00:03]} d4 {[%emt 0:00:48]} 7. e3 {[%emt 0:00:08]} c5 {[%emt 0:00:04]} 8. Ne5 {[%emt 0:00:04]} Nfd7 {[%emt 0:01:41]} 9. exd4 {[%emt 0:01:40]} cxd4 {[%emt 0:00:07]} 10. Nxd7 {[%emt 0:00:04]} Qxd7 {[%emt 0:00:54]} 11. d3 {[%emt 0:00:34]} Nc6 {[%emt 0:00:06]} 12. Na3 {[%emt 0:04:18]} b6 {[%emt 0:03:42]} 13. Nc2 {[%emt 0:00:07]} Bb7 {[%emt 0:00:05]} 14. Bb2 {[%emt 0:00:11]} Rad8 {[%emt 0:01:56]} 15. f4 {[%emt 0:05:28]} a5 {[%emt 0:04:39]} 16. a3 {[%emt 0:03:10]} Rfe8 {[%emt 0:22:36]} 17. Qd2 {[%emt 0:02:19]} f5 {[%emt 0:01:53]} 18. Rfe1 {[%emt 0:06:04]} Bf6 {[%emt 0:00:39]} 19. Re2 {[%emt 0:00:14]} Nb8 {[%emt 0:12:29]} 20. Bxb7 {[%emt 0:01:16]} Qxb7 {[%emt 0:00:02]} 21. Rae1 {[%emt 0:00:09]} Kf7 {[%emt 0:00:40]} 22. b4 {[%emt 0:03:56]} b5 {[%emt 0:03:32]} 23. cxb5 {[%emt 0:08:17]} a4 {[%emt 0:00:07]} 24. g4 {[%emt 0:10:11]} g6 {[%emt 0:06:41]} 25. gxf5 {[%emt 0:06:08]} gxf5 {[%emt 0:00:07]} 26. Rg2 {[%emt 0:00:05]} Rg8 {[%emt 0:00:04]} 27. Ree2 {[%emt 0:00:05]} Qxb5 {[%emt 0:05:01]} 28. Ne1 {[%emt 0:03:51]} Nc6 {[%emt 0:04:06]} 29. Rxg8 {[%emt 0:08:45]} Rxg8+ {[%emt 0:00:06]} 30. Rg2 {[%emt 0:00:03]} Rxg2+ {[%emt 0:06:32]} 31. Qxg2 {[%emt 0:00:15]} Bh4 {[%emt 0:01:35]} 32. Nf3 {[%emt 0:07:10]} Qxd3 {[%emt 0:00:29]} 33. b5 {[%emt 0:00:04]} Qb1+ {[%emt 0:19:05]} 34. Qf1 {[%emt 0:00:02]} Qxb2 {[%emt 0:00:05]} 35. bxc6 {[%emt 0:00:09]} Bd8 {[%emt 0:00:13]} 36. Qc4 {[%emt 0:00:50]} Qb3 {[%emt 0:04:02]} 37. c7 {[%emt 0:01:15]} Qxc4 {[%emt 0:00:51]} 38. cxd8=Q {[%emt 0:00:52]} Qc1+ {[%emt 0:00:03]} 39. Kg2 {[%emt 0:00:09]} Qxf4 {[%emt 0:03:24]} 40. Qxd4 {[%emt 0:02:15]} Qb8 {[%emt 0:01:00]} 41. Qxa4 {[%emt 0:00:44]} Qb2+ {[%emt 0:00:03]} 42. Kh3 {[%emt 0:04:19]} Qc3 {[%emt 0:00:01]} 43. Qa7+ {[%emt 0:00:21]} Kg6 {[%emt 0:00:21]} 44. Qg1+ {[%emt 0:01:03]} Kf7 {[%emt 0:00:06]} 45. Qg3 {[%emt 0:00:04]} Kf6 {[%emt 0:01:37]} 46. a4 {[%emt 0:03:18]} h6 {[%emt 0:00:08]} 47. Qf4 {[%emt 0:02:11]} Ke7 {[%emt 0:00:49]} 48. Kg3 {[%emt 0:00:42]} Qg7+ {[%emt 0:00:05]} 49. Kf2 {[%emt 0:00:05]} Qb2+ {[%emt 0:00:03]} 50. Qd2 {[%emt 0:00:04]} Qa3 {[%emt 0:00:49]} 51. a5 {[%emt 0:01:08]} Qa4 {[%emt 0:00:24]} 52. Nd4 {[%emt 0:02:03]} Kf7 {[%emt 0:01:22]} 53. Qe3 {[%emt 0:00:28]} Qa2+ {[%emt 0:00:04]} 54. Ke1 1-0

[Event "6th Porticcio Open 2019"]
[Site "Porticcio"]
[Date "2019.07.02"]
[Round "5.5"]
[White "Kovchan, Alexander"]
[Black "Debray, Christopher"]
[Result "1/2-1/2"]
[ECO "C42"]
[WhiteElo "2566"]
[BlackElo "2352"]
[Annotator "ChessBase"]
[PlyCount "81"]
[EventDate "2019.06.23"]
[EventType "swiss"]
[EventCountry "FRA"]
[SourceTitle "playchess.com"]
[Source "ChessBase"]
[SourceQuality "1"]
[TimeControl "5400+30"]

1. e4 {[%emt 0:00:37]} e5 {[%emt 0:00:00]} 2. Nf3 {[%emt 0:00:23]} Nf6 {[%emt 0:00:00]} 3. Nxe5 {[%emt 0:00:43]} d6 {[%emt 0:00:00]} 4. Nf3 {[%emt 0:00:10]} Nxe4 {[%emt 0:00:00]} 5. d4 {[%emt 0:00:15]} d5 {[%emt 0:00:00]} 6. Bd3 {[%emt 0:00:22]} Nc6 {[%emt 0:00:02]} 7. O-O {[%emt 0:00:27]} Bg4 {[%emt 0:00:03]} 8. c3 {[%emt 0:03:45]} Bd6 {[%emt 0:01:58]} 9. Re1 {[%emt 0:05:21]} f5 {[%emt 0:00:36]} 10. Nbd2 {[%emt 0:02:08]} O-O {[%emt 0:06:10]} 11. Qb3 {[%emt 0:05:22]} Kh8 {[%emt 0:01:26]} 12. h3 {[%emt 0:04:56]} Bh5 {[%emt 0:01:50]} 13. Qxb7 {[%emt 0:01:30]} Rf6 {[%emt 0:04:38]} 14. Kf1 {[%emt 0:05:38]} Bf4 {[%emt 0:13:14]} 15. Nxe4 {[%emt 0:11:43]} fxe4 {[%emt 0:00:15]} 16. Bxf4 {[%emt 0:00:11]} Rxf4 {[%emt 0:04:53]} 17. Qxc6 {[%emt 0:01:15]} exd3 {[%emt 0:06:17]} 18. Re3 {[%emt 0:07:51]} Rf6 {[%emt 0:04:34]} 19. Qb5 {[%emt 0:07:40]} Bxf3 {[%emt 0:00:14]} 20. gxf3 {[%emt 0:00:37]} d2 {[%emt 0:07:07]} 21. Qd3 {[%emt 0:02:52]} Qd7 {[%emt 0:01:58]} 22. Ke2 {[%emt 0:00:24]} Qxh3 {[%emt 0:00:42]} 23. Kxd2 {[%emt 0:05:54]} Raf8 {[%emt 0:02:01]} 24. Rae1 {[%emt 0:08:51]} h6 {[%emt 0:01:34]} 25. Ke2 {[%emt 0:02:23]} Qg2 {[%emt 0:03:38]} 26. b4 {[%emt 0:01:30]} h5 {[%emt 0:05:19]} 27. Kd2 {[%emt 0:08:37]} Rxf3 {[%emt 0:02:39]} 28. Rxf3 {[%emt 0:00:14]} Qxf3 {[%emt 0:00:05]} 29. Qxf3 {[%emt 0:01:04]} Rxf3 {[%emt 0:00:01]} 30. Re5 {[%emt 0:00:33]} g6 {[%emt 0:03:26]} 31. Ke2 {[%emt 0:01:03]} Rxc3 {[%emt 0:00:53]} 32. Rxd5 {[%emt 0:00:03]} Ra3 {[%emt 0:06:54]} 33. Rd8+ {[%emt 0:00:09]} Kg7 {[%emt 0:00:05]} 34. Rd7+ {[%emt 0:00:03]} Kf6 {[%emt 0:00:14]} 35. Rxc7 {[%emt 0:00:03]} Rxa2+ {[%emt 0:00:04]} 36. Kf3 {[%emt 0:00:05]} g5 {[%emt 0:03:21]} 37. Rc6+ {[%emt 0:00:28]} Kf5 {[%emt 0:01:36]} 38. Rc5+ {[%emt 0:00:03]} Kf6 {[%emt 0:00:04]} 39. Rc6+ {[%emt 0:00:13]} Kf5 {[%emt 0:00:04]} 40. Rc5+ {[%emt 0:00:12]} Kf6 {[%emt 0:00:02]} 41. Rc6+ {[%emt 0:00:04] Ke5 Ke4+} 1/2-1/2

[Event "6th Porticcio Open 2019"]
[Site "Porticcio"]
[Date "2019.07.02"]
[Round "5.6"]
[White "Sadhwani, Raunak"]
[Black "Boyer, Mahel"]
[Result "1-0"]
[ECO "A14"]
[WhiteElo "2482"]
[BlackElo "2295"]
[Annotator "ChessBase"]
[PlyCount "84"]
[EventDate "2019.06.23"]
[EventType "swiss"]
[EventCountry "FRA"]
[SourceTitle "playchess.com"]
[Source "ChessBase"]
[SourceQuality "1"]
[TimeControl "5400+30"]

1. Nf3 {[%emt 0:00:00]} Nf6 {[%emt 0:00:14]} 2. c4 {[%emt 0:00:00]} e6 {[%emt 0:00:03]} 3. g3 {[%emt 0:00:00]} d5 {[%emt 0:00:03]} 4. Bg2 {[%emt 0:00:00]} Be7 {[%emt 0:00:06]} 5. O-O {[%emt 0:00:00]} O-O {[%emt 0:00:05]} 6. b3 {[%emt 0:00:00]} d4 {[%emt 0:00:34]} 7. e3 {[%emt 0:00:48]} c5 {[%emt 0:00:03]} 8. exd4 {[%emt 0:00:52]} cxd4 {[%emt 0:00:03]} 9. Bb2 {[%emt 0:00:17]} Nc6 {[%emt 0:00:06]} 10. Re1 {[%emt 0:00:05]} Ng4 {[%emt 0:00:08]} 11. h3 {[%emt 0:07:34]} Nh6 {[%emt 0:00:03]} 12. a3 {[%emt 0:01:00]} a5 {[%emt 0:00:05]} 13. Ne5 {[%emt 0:00:36]} Nxe5 {[%emt 0:00:21]} 14. Rxe5 {[%emt 0:00:06]} f6 {[%emt 0:00:10]} 15. Rb5 {[%emt 0:08:45]} e5 {[%emt 0:00:05]} 16. d3 {[%emt 0:00:59]} Ra7 {[%emt 0:09:05]} 17. b4 {[%emt 0:04:04]} Bd7 {[%emt 0:00:53]} 18. Rxb7 {[%emt 0:01:49]} Rxb7 {[%emt 0:00:06]} 19. Bxb7 {[%emt 0:00:04]} Bxh3 {[%emt 0:25:20]} 20. Qa4 {[%emt 0:08:35]} axb4 {[%emt 0:04:27]} 21. axb4 {[%emt 0:00:10]} f5 {[%emt 0:05:40]} 22. Qb5 {[%emt 0:06:42]} f4 {[%emt 0:13:20]} 23. Qd5+ {[%emt 0:12:54]} Qxd5 {[%emt 0:03:48]} 24. Bxd5+ {[%emt 0:00:03]} Kh8 {[%emt 0:00:10]} 25. gxf4 {[%emt 0:03:04]} Ng4 {[%emt 0:09:02]} 26. b5 {[%emt 0:00:42]} Bh4 {[%emt 0:06:55]} 27. Ra8 {[%emt 0:00:35]} Bxf2+ {[%emt 0:00:26]} 28. Kh1 {[%emt 0:00:02]} Rxa8 {[%emt 0:00:13]} 29. Bxa8 {[%emt 0:00:02]} exf4 {[%emt 0:08:18]} 30. Bg2 {[%emt 0:04:10]} Bxg2+ {[%emt 0:00:38]} 31. Kxg2 {[%emt 0:00:03]} Be3 {[%emt 0:01:40]} 32. b6 {[%emt 0:01:13]} Ne5 {[%emt 0:00:05]} 33. b7 {[%emt 0:00:16]} Nc6 {[%emt 0:00:23]} 34. Na3 {[%emt 0:02:56]} Kg8 {[%emt 0:03:59]} 35. Nc2 {[%emt 0:02:52]} Kf7 {[%emt 0:00:26]} 36. Nxe3 {[%emt 0:04:46]} dxe3 {[%emt 0:01:02]} 37. d4 {[%emt 0:00:18]} Nb8 {[%emt 0:04:06]} 38. d5 {[%emt 0:00:12]} Kg6 {[%emt 0:00:23]} 39. c5 {[%emt 0:01:57]} Kf5 {[%emt 0:00:07]} 40. c6 {[%emt 0:00:14]} Ke4 {[%emt 0:00:11]} 41. c7 {[%emt 0:00:19]} f3+ {[%emt 0:00:04]} 42. Kf1 {[%emt 0:00:47]} Kxd5 1-0